lending/lending_fUSD_20240411
["ID","MTS","AMOUNT","RATE_DAILY","PERIOD"]
[322182914,1712866251480,-1049.31,0.00027671,2]
[322182915,1712866251489,-503.43488777,0.00027671,2]
[322182916,1712866251498,-849.21,0.00027671,2]
[322182917,1712866251507,-500.0,0.00027671,2]
[322182918,1712866251517,-719.23,0.00027671,2]
[322182919,1712866251526,-500.0,0.00027671,2]
[322182920,1712866251535,-500.0,0.00027671,2]
[322182921,1712866251544,-500.0,0.00027671,2]
[322182922,1712866251553,-500.0,0.00027671,2]
[322182923,1712866251562,-579.3,0.00027671,2]
[322182924,1712866251572,-500.0,0.00027671,2]
[322182925,1712866251581,-500.0,0.00027671,2]
[322182926,1712866251590,-618.67890194,0.00027671,2]
[322182927,1712866251601,-500.0,0.00027671,2]
[322182928,1712866251610,-500.0,0.00027671,2]
[322182929,1712866251620,-500.0,0.00027671,2]
[322182930,1712866251629,-554.93,0.00027671,2]
[322182931,1712866251638,-500.0,0.00027671,2]
[322182932,1712866251648,-727.72,0.00027671,2]
[322182933,1712866251657,-500.0,0.00027671,2]
[322182934,1712866251666,-500.0,0.00027671,2]
[322182935,1712866251676,-500.0,0.00027671,2]
[322182936,1712866251685,-500.0,0.00027671,2]
[322182937,1712866251694,-500.0,0.00027671,2]
[322182938,1712866251703,-500.0,0.00027671,2]
[322182939,1712866251712,-538.38,0.00027671,2]
[322182940,1712866251722,-500.0,0.00027671,2]
[322182941,1712866251731,-691.83,0.00027671,2]
[322182942,1712866251741,-500.0,0.00027671,2]
[322182943,1712866251751,-500.0,0.00027671,2]
[322182944,1712866251760,-500.0,0.00027671,2]
[322182945,1712866251769,-500.0,0.00027671,2]
[322182946,1712866251779,-500.0,0.00027671,2]
[322182947,1712866251789,-554.56483441,0.00027671,2]
[322182948,1712866251798,-500.0,0.00027671,2]
[322182949,1712866251808,-500.0,0.00027671,2]
[322182950,1712866251817,-500.0,0.00027671,2]
[322182951,1712866251827,-500.0,0.00027671,2]
[322182952,1712866251837,-500.0,0.00027671,2]
[322182953,1712866251848,-698.24,0.00027671,2]
[322182954,1712866251857,-500.0,0.00027671,2]
[322182955,1712866251867,-500.0,0.00027671,2]
[322182956,1712866251877,-500.0,0.00027671,2]
[322182957,1712866251888,-990.4,0.00027671,2]
[322182958,1712866251898,-500.0,0.00027671,2]
[322182959,1712866251908,-500.0,0.00027671,2]
[322182960,1712866251918,-500.0,0.00027671,2]
[322182961,1712866251928,-500.0,0.00027671,2]
[322182962,1712866251938,-500.0,0.00027671,2]
[322182963,1712866251948,-500.0,0.00027671,2]
[322182964,1712866251958,-500.0,0.00027671,2]
[322182965,1712866251967,-500.0,0.00027671,2]
[322182966,1712866251977,-500.0,0.00027671,2]
[322182967,1712866251986,-500.0,0.00027671,2]
[322182968,1712866251997,-500.0,0.00027671,2]
[322182969,1712866252006,-531.39,0.00027671,2]
[322182970,1712866252017,-500.0,0.00027671,2]
[322182971,1712866252029,-653.99,0.00027671,2]
[322182972,1712866252039,-500.0,0.00027671,2]
[322182973,1712866252049,-936.9,0.00027671,2]
[322182974,1712866252059,-500.0,0.00027671,2]
[322182975,1712866252069,-500.0,0.00027671,2]
[322182976,1712866252079,-500.0,0.00027671,2]
[322182977,1712866252090,-500.0,0.00027671,2]
[322182978,1712866252105,-500.0,0.00027671,2]
[322182979,1712866252115,-500.0,0.00027671,2]
[322182980,1712866252124,-500.0,0.00027671,2]
[322182981,1712866252135,-1367.32,0.00027671,2]
[322182982,1712866252144,-516.57,0.00027671,2]
[322182983,1712866252154,-1193.61,0.00027671,2]
[322182984,1712866252163,-500.0,0.00027671,2]
[322182985,1712866252173,-500.0,0.00027671,2]
[322182986,1712866252183,-500.0,0.00027671,2]
[322182987,1712866252192,-500.0,0.00027671,2]
[322182988,1712866252202,-500.0,0.00027671,2]
[322182989,1712866252225,-500.0,0.00027671,2]
[322182990,1712866252236,-500.0,0.00027671,2]
[322182991,1712866252245,-500.0,0.00027671,2]
[322182992,1712866252255,-1022.91,0.00027671,2]
[322182993,1712866252264,-1247.04,0.00027671,2]
[322182994,1712866252273,-500.0,0.00027671,2]
[322182995,1712866252283,-500.0,0.00027671,2]
[322182996,1712866252293,-500.0,0.00027671,2]
[322182997,1712866252302,-708.51,0.00027671,2]
[322182998,1712866252314,-668.36,0.00027671,2]
[322182999,1712866252323,-533.93,0.00027671,2]
[322183000,1712866252334,-500.0,0.00027671,2]
[322183001,1712866252345,-500.0,0.00027671,2]
[322183002,1712866252355,-1327.28,0.00027671,2]
[322183003,1712866252364,-500.0,0.00027671,2]
[322183004,1712866252373,-500.0,0.00027671,2]
[322183005,1712866252382,-703.21,0.00027671,2]
[322183006,1712866252392,-500.0,0.00027671,2]
[322183007,1712866252401,-500.0,0.00027671,2]
[322183008,1712866252411,-500.0,0.00027671,2]
[322183009,1712866252421,-500.0,0.00027671,2]
[322183010,1712866252430,-500.0,0.00027671,2]
[322183011,1712866252440,-500.0,0.00027671,2]
[322183012,1712866252450,-500.0,0.00027671,2]
[322183013,1712866252459,-500.0,0.00027671,2]
[322183014,1712866252469,-1199.25,0.00027671,2]
[322183015,1712866252479,-500.0,0.00027671,2]
[322183016,1712866252488,-608.54167945,0.00027671,2]
[322183017,1712866252498,-500.0,0.00027671,2]
[322183018,1712866252508,-500.0,0.00027671,2]
[322183019,1712866252517,-500.0,0.00027671,2]
[322183020,1712866252527,-500.0,0.00027671,2]
[322183021,1712866252537,-500.0,0.00027671,2]
[322183022,1712866252547,-629.04,0.00027671,2]
[322183023,1712866252556,-500.0,0.00027671,2]
[322183024,1712866252566,-706.9,0.00027671,2]
[322183025,1712866252576,-500.0,0.00027671,2]
[322183026,1712866252586,-598.35,0.00027671,2]
[322183027,1712866252598,-500.0,0.00027671,2]
[322183028,1712866252608,-500.0,0.00027671,2]
[322183029,1712866252618,-500.0,0.00027671,2]
[322183030,1712866252628,-504.85,0.00027671,2]
[322183031,1712866252638,-528.74,0.00027671,2]
[322183032,1712866252648,-500.0,0.00027671,2]
[322183033,1712866252658,-500.0,0.00027671,2]
[322183034,1712866252669,-500.0,0.00027671,2]
[322183035,1712866252679,-500.0,0.00027671,2]
[322183036,1712866252689,-847.93,0.00027671,2]
[322183037,1712866252699,-500.0,0.00027671,2]
[322183038,1712866252708,-611.42,0.00027671,2]
[322183039,1712866252718,-1206.16,0.00027671,2]
[322183040,1712866252728,-500.0,0.00027671,2]
[322183041,1712866252738,-500.0,0.00027671,2]
[322183043,1712866252748,-500.0,0.00027671,2]
[322183044,1712866252758,-500.0,0.00027671,2]
[322183045,1712866252768,-500.0,0.00027671,2]
[322183046,1712866252778,-802.61,0.00027671,2]
[322183047,1712866252787,-500.0,0.00027671,2]
[322183048,1712866252797,-500.0,0.00027671,2]
[322183049,1712866252807,-500.0,0.00027671,2]
[322183050,1712866252816,-500.0,0.00027671,2]
[322183051,1712866252827,-407.93603705,0.00027671,2]
[322183052,1712866252838,-500.0,0.00027671,2]
[322183053,1712866252850,-500.0,0.00027671,2]
[322183054,1712866252860,-500.0,0.00027671,2]
[322183055,1712866252869,-569.54,0.00027671,2]
[322183056,1712866252879,-500.0,0.00027671,2]
[322183057,1712866252889,-500.0,0.00027671,2]
[322183058,1712866252899,-589.99,0.00027671,2]
[322183059,1712866252909,-500.0,0.00027671,2]
[322183060,1712866252919,-514.57858315,0.00027671,2]
[322183061,1712866252928,-500.0,0.00027671,2]
[322183062,1712866252939,-1460.25,0.00027671,2]
[322183063,1712866252948,-500.0,0.00027671,2]
[322183064,1712866252958,-500.0,0.00027671,2]
[322183065,1712866252968,-500.0,0.00027671,2]
[322183066,1712866252978,-500.0,0.00027671,2]
[322183067,1712866252987,-638.49,0.00027671,2]
[322183068,1712866252998,-1009.75,0.00027671,2]
[322183069,1712866253008,-500.0,0.00027671,2]
[322183070,1712866253018,-500.16,0.00027671,2]
[322183071,1712866253028,-500.0,0.00027671,2]
[322183072,1712866253038,-500.0,0.00027671,2]
[322183073,1712866253047,-500.0,0.00027671,2]
[322183074,1712866253057,-500.0,0.00027671,2]
[322183075,1712866253067,-538.21,0.00027671,2]
[322183076,1712866253077,-1341.17,0.00027671,2]
[322183078,1712866253087,-862.75,0.00027671,2]
[322183079,1712866253098,-716.18,0.00027671,2]
[322183081,1712866253108,-500.0,0.00027671,2]
[322183082,1712866253119,-500.0,0.00027671,2]
[322183083,1712866253128,-500.0,0.00027671,2]
[322183084,1712866253139,-500.0,0.00027671,2]
[322183085,1712866253150,-1295.66,0.00027671,2]
[322183086,1712866253160,-500.0,0.00027671,2]
[322183087,1712866253170,-887.01,0.00027671,2]
[322183088,1712866253180,-500.0,0.00027671,2]
[322183089,1712866253190,-673.7,0.00027671,2]
[322183090,1712866253201,-1526.25,0.00027671,2]
[322183091,1712866253210,-500.0,0.00027671,2]
[322183092,1712866253221,-500.0,0.00027671,2]
[322183093,1712866253231,-1187.02,0.00027671,2]
[322183094,1712866253240,-500.0,0.00027671,2]
[322183095,1712866253250,-500.0,0.00027671,2]
[322183096,1712866253259,-500.0,0.00027671,2]
[322183097,1712866253269,-646.56,0.00027671,2]
[322183098,1712866253278,-500.0,0.00027671,2]
[322183099,1712866253289,-500.0,0.00027671,2]
[322183100,1712866253299,-500.0,0.00027671,2]
[322183101,1712866253313,-772.5,0.00027671,2]
[322183102,1712866253323,-1678.07,0.00027671,2]
[322183103,1712866253333,-1728.35,0.00027671,2]
[322183104,1712866253345,-500.0,0.00027671,2]
[322183105,1712866253355,-500.0,0.00027671,2]
[322183106,1712866253364,-500.0,0.00027671,2]
[322183107,1712866253374,-500.0,0.00027671,2]
[322183108,1712866253385,-500.0,0.00027671,2]
[322183109,1712866253394,-500.0,0.00027671,2]
[322183110,1712866253404,-500.0,0.00027671,2]
[322183111,1712866253413,-500.0,0.00027671,2]
[322183112,1712866253423,-500.0,0.00027671,2]
[322183113,1712866253432,-551.1,0.00027671,2]
[322183114,1712866253442,-500.0,0.00027671,2]
[322183115,1712866253452,-1307.13,0.00027671,2]
[322183116,1712866253462,-693.72,0.00027671,2]
[322183117,1712866253471,-500.0,0.00027671,2]
[322183118,1712866253480,-891.7,0.00027671,2]
[322183119,1712866253490,-500.0,0.00027671,2]
[322183120,1712866253499,-500.0,0.00027671,2]
[322183121,1712866253509,-500.0,0.00027671,2]
[322183122,1712866253519,-500.0,0.00027671,2]
[322183123,1712866253528,-569.32,0.00027671,2]
[322183124,1712866253539,-521.17,0.00027671,2]
[322183125,1712866253548,-500.0,0.00027671,2]
[322183126,1712866253558,-500.0,0.00027671,2]
[322183127,1712866253567,-1535.36,0.00027671,2]
[322183128,1712866253577,-812.35,0.00027671,2]
[322183129,1712866253586,-500.0,0.00027671,2]
[322183130,1712866253597,-500.0,0.00027671,2]
[322183131,1712866253606,-532.79855509,0.00027671,2]
[322183132,1712866253615,-500.0,0.00027671,2]
[322183133,1712866253625,-568.24,0.00027671,2]
[322183134,1712866253635,-209.54636017,0.00027671,2]
[322183135,1712866253645,-500.0,0.00027671,2]
[322183136,1712866253654,-728.92,0.00027671,2]
[322183137,1712866253664,-500.0,0.00027671,2]
[322183138,1712866253674,-500.0,0.00027671,2]
[322183139,1712866253683,-500.0,0.00027671,2]
[322183140,1712866253693,-500.0,0.00027671,2]
[322183141,1712866253702,-584.91,0.00027671,2]
[322183142,1712866253712,-1293.36,0.00027671,2]
[322183143,1712866253721,-500.0,0.00027671,2]
[322183144,1712866253731,-500.0,0.00027671,2]
[322183145,1712866253740,-500.0,0.00027671,2]
[322183146,1712866253750,-500.0,0.00027671,2]
[322183147,1712866253759,-500.0,0.00027671,2]
[322183148,1712866253769,-500.0,0.00027671,2]
[322183149,1712866253779,-500.0,0.00027671,2]
[322183150,1712866253789,-500.0,0.00027671,2]
[322183151,1712866253798,-500.0,0.00027671,2]
[322183152,1712866253809,-692.51,0.00027671,2]
[322183153,1712866253819,-500.0,0.00027671,2]
[322183154,1712866253829,-1630.17,0.00027671,2]
[322183155,1712866253838,-812.07,0.00027671,2]
[322183156,1712866253849,-500.0,0.00027671,2]
[322183157,1712866253859,-500.0,0.00027671,2]
[322183158,1712866253870,-500.0,0.00027671,2]
[322183159,1712866253880,-586.60971887,0.00027671,2]
[322183160,1712866253890,-500.0,0.00027671,2]
[322183161,1712866254088,-500.0,0.00027671,2]
[322183162,1712866254102,-500.0,0.00027671,2]
[322183163,1712866254111,-500.0,0.00027671,2]
[322183164,1712866254121,-570.24,0.00027671,2]
[322183165,1712866254130,-500.0,0.00027671,2]
[322183166,1712866254140,-500.0,0.00027671,2]
[322183167,1712866254150,-745.69,0.00027671,2]
[322183168,1712866254159,-500.0,0.00027671,2]
[322183169,1712866254168,-500.0,0.00027671,2]
[322183170,1712866254178,-500.0,0.00027671,2]
[322183171,1712866254188,-500.0,0.00027671,2]
[322183172,1712866254197,-500.0,0.00027671,2]
[322183173,1712866254206,-500.0,0.00027671,2]
[322183174,1712866254216,-1372.95,0.00027671,2]
[322183175,1712866254225,-500.0,0.00027671,2]
[322183176,1712866254235,-1242.69,0.00027671,2]
[322183177,1712866254244,-500.0,0.00027671,2]
[322183178,1712866254254,-500.0,0.00027671,2]
[322183179,1712866254263,-500.0,0.00027671,2]
[322183180,1712866254272,-500.0,0.00027671,2]
[322183181,1712866254281,-500.0,0.00027671,2]
[322183182,1712866254290,-1173.35,0.00027671,2]
[322183183,1712866254299,-500.0,0.00027671,2]
[322183184,1712866254308,-500.0,0.00027671,2]
[322183185,1712866254320,-500.0,0.00027671,2]
[322183186,1712866254330,-500.0,0.00027671,2]
[322183187,1712866254339,-500.0,0.00027671,2]
[322183188,1712866254352,-500.0,0.00027671,2]
[322183189,1712866254363,-500.0,0.00027671,2]
[322183190,1712866254372,-1888.3,0.00027671,2]
[322183191,1712866254381,-500.0,0.00027671,2]
[322183192,1712866254392,-1191.36,0.00027671,2]
[322183193,1712866254402,-1572.47,0.00027671,2]
[322183194,1712866254411,-194.16752508,0.00027671,2]
[322183195,1712866254421,-500.0,0.00027671,2]
[322183196,1712866254430,-1236.41,0.00027671,2]
[322183197,1712866254440,-500.0,0.00027671,2]
[322183198,1712866254449,-500.0,0.00027671,2]
[322183199,1712866254458,-500.0,0.00027671,2]
[322183200,1712866254468,-500.0,0.00027671,2]
[322183201,1712866254477,-500.0,0.00027671,2]
[322183202,1712866254487,-1108.31,0.00027671,2]
[322183203,1712866254496,-500.0,0.00027671,2]
[322183204,1712866254506,-1141.52,0.00027671,2]
[322183205,1712866254515,-818.3,0.00027671,2]
[322183206,1712866254525,-500.0,0.00027671,2]
[322183207,1712866254534,-500.0,0.00027671,2]
[322183208,1712866254543,-500.0,0.00027671,2]
[322183209,1712866254554,-500.0,0.00027671,2]
[322183210,1712866254564,-515.51,0.00027671,2]
[322183211,1712866254573,-560.75,0.00027671,2]
[322183212,1712866254583,-500.0,0.00027671,2]
[322183213,1712866254592,-500.0,0.00027671,2]
[322183214,1712866254603,-500.0,0.00027671,2]
[322183215,1712866254613,-500.0,0.00027671,2]
[322183216,1712866254622,-500.0,0.00027671,2]
[322183217,1712866254631,-500.0,0.00027671,2]
[322183218,1712866254641,-500.0,0.00027671,2]
[322183219,1712866254650,-500.0,0.00027671,2]
[322183220,1712866254660,-1012.82,0.00027671,2]
[322183221,1712866254670,-500.0,0.00027671,2]
[322183222,1712866254679,-500.0,0.00027671,2]
[322183223,1712866254689,-500.0,0.00027671,2]
[322183224,1712866254698,-606.62,0.00027671,2]
[322183225,1712866254707,-500.0,0.00027671,2]
[322183226,1712866254717,-1642.01,0.00027671,2]
[322183227,1712866254726,-500.0,0.00027671,2]
[322183228,1712866254735,-500.0,0.00027671,2]
[322183229,1712866254744,-500.0,0.00027671,2]
[322183230,1712866254754,-500.0,0.00027671,2]
[322183231,1712866254763,-639.29,0.00027671,2]
[322183232,1712866254773,-731.62,0.00027671,2]
[322183233,1712866254782,-500.0,0.00027671,2]
[322183234,1712866254792,-1110.6,0.00027671,2]
[322183235,1712866254803,-500.0,0.00027671,2]
[322183236,1712866254812,-500.0,0.00027671,2]
[322183237,1712866254822,-500.0,0.00027671,2]
[322183238,1712866254831,-583.7,0.00027671,2]
[322183239,1712866254841,-1997.53,0.00027671,2]
[322183240,1712866254853,-500.0,0.00027671,2]
[322183241,1712866254862,-500.0,0.00027671,2]
[322183242,1712866254871,-500.0,0.00027671,2]
[322183243,1712866254881,-543.86993004,0.00027671,2]
[322183244,1712866254890,-500.0,0.00027671,2]
[322183245,1712866254900,-652.59,0.00027671,2]
[322183246,1712866254909,-2716.5,0.00027671,2]
[322183247,1712866254919,-500.0,0.00027671,2]
[322183248,1712866254929,-2096.15,0.00027671,2]
[322183249,1712866254938,-500.0,0.00027671,2]
[322183250,1712866254948,-500.0,0.00027671,2]
[322183251,1712866254957,-500.0,0.00027671,2]
[322183252,1712866254967,-500.0,0.00027671,2]
[322183253,1712866254976,-500.0,0.00027671,2]
[322183254,1712866254985,-500.0,0.00027671,2]
[322183255,1712866254995,-500.0,0.00027671,2]
[322183256,1712866255005,-599.77727837,0.00027671,2]
[322183257,1712866255014,-500.0,0.00027671,2]
[322183258,1712866255025,-500.0,0.00027671,2]
[322183259,1712866255036,-500.0,0.00027671,2]
[322183260,1712866255047,-1383.41,0.00027671,2]
[322183261,1712866255056,-1105.5,0.00027671,2]
[322183262,1712866255066,-500.0,0.00027671,2]
[322183263,1712866255076,-500.0,0.00027671,2]
[322183264,1712866255085,-500.0,0.00027671,2]
[322183265,1712866255095,-702.78,0.00027671,2]
[322183266,1712866255105,-500.0,0.00027671,2]
[322183267,1712866255114,-500.0,0.00027671,2]
[322183268,1712866255123,-500.0,0.00027671,2]
[322183269,1712866255133,-966.39,0.00027671,2]
[322183270,1712866255142,-500.0,0.00027671,2]
[322183271,1712866255151,-500.0,0.00027671,2]
[322183272,1712866255161,-500.0,0.00027671,2]
[322183273,1712866255170,-500.0,0.00027671,2]
[322183274,1712866255179,-500.0,0.00027671,2]
[322183275,1712866255188,-500.0,0.00027671,2]
[322183276,1712866255197,-500.0,0.00027671,2]
[322183277,1712866255206,-500.0,0.00027671,2]
[322183278,1712866255215,-1189.02,0.00027671,2]
[322183279,1712866255225,-500.0,0.00027671,2]
[322183280,1712866255234,-2050.19,0.00027671,2]
[322183281,1712866255243,-500.0,0.00027671,2]
[322183282,1712866255253,-500.0,0.00027671,2]
[322183283,1712866255262,-500.0,0.00027671,2]
[322183284,1712866255271,-582.16,0.00027671,2]
[322183285,1712866255281,-500.0,0.00027671,2]
[322183286,1712866255291,-1247.32,0.00027671,2]
[322183287,1712866255301,-500.0,0.00027671,2]
[322183288,1712866255313,-876.28,0.00027671,2]
[322183289,1712866255323,-500.0,0.00027671,2]
[322183290,1712866255332,-500.0,0.00027671,2]
[322183291,1712866255342,-500.0,0.00027671,2]
[322183292,1712866255353,-500.0,0.00027671,2]
[322183293,1712866255363,-500.0,0.00027671,2]
[322183294,1712866255375,-855.58,0.00027671,2]
[322183295,1712866255384,-500.0,0.00027671,2]
[322183296,1712866255395,-1239.31,0.00027671,2]
[322183297,1712866255406,-300.0,0.00027671,2]
[322183298,1712866255415,-745.12,0.00027671,2]
[322183299,1712866255424,-150.0,0.00027671,2]
[322183300,1712866255434,-500.0,0.00027671,2]
[322183301,1712866255444,-2556.24,0.00027671,2]
[322183302,1712866255453,-866.37,0.00027671,2]
[322183303,1712866255463,-568.88241465,0.00027671,2]
[322183304,1712866255472,-500.0,0.00027671,2]
[322183305,1712866255484,-500.0,0.00027671,2]
[322183306,1712866255493,-500.0,0.00027671,2]
[322183307,1712866255503,-500.0,0.00027671,2]
[322183308,1712866255513,-500.0,0.00027671,2]
[322183309,1712866255522,-500.0,0.00027671,2]
[322183310,1712866255532,-500.0,0.00027671,2]
[322183311,1712866255542,-991.83,0.00027671,2]
[322183312,1712866255552,-500.0,0.00027671,2]
[322183313,1712866255561,-517.05746553,0.00027671,2]
[322183314,1712866255571,-536.82727536,0.00027671,2]
[322183315,1712866255581,-500.0,0.00027671,2]
[322183316,1712866255591,-500.0,0.00027671,2]
[322183317,1712866255602,-500.0,0.00027671,2]
[322183318,1712866255613,-500.0,0.00027671,2]
[322183319,1712866255623,-5000.0,0.00027671,2]
[322183320,1712866255635,-500.0,0.00027671,2]
[322183321,1712866255645,-1045.55,0.00027671,2]
[322183322,1712866255654,-500.0,0.00027671,2]
[322183323,1712866255664,-782.09,0.00027671,2]
[322183324,1712866255675,-500.0,0.00027671,2]
[322183325,1712866255684,-631.55,0.00027671,2]
[322183326,1712866255695,-500.0,0.00027671,2]
[322183327,1712866255704,-500.0,0.00027671,2]
[322183328,1712866255713,-500.0,0.00027671,2]
[322183329,1712866255722,-1904.95,0.00027671,2]
[322183330,1712866255731,-1002.26,0.00027671,2]
[322183331,1712866255741,-500.0,0.00027671,2]
[322183332,1712866255750,-500.0,0.00027671,2]
[322183333,1712866255760,-500.0,0.00027671,2]
[322183334,1712866255769,-540.92845011,0.00027671,2]
[322183335,1712866255778,-500.0,0.00027671,2]
[322183336,1712866255788,-500.0,0.00027671,2]
[322183337,1712866255797,-523.61,0.00027671,2]
[322183338,1712866255807,-500.0,0.00027671,2]
[322183339,1712866255816,-500.0,0.00027671,2]
[322183340,1712866255825,-1829.68,0.00027671,2]
[322183341,1712866255834,-500.0,0.00027671,2]
[322183342,1712866255843,-500.0,0.00027671,2]
[322183343,1712866255853,-824.24,0.00027671,2]
[322183344,1712866255862,-500.0,0.00027671,2]
[322183345,1712866255872,-500.0,0.00027671,2]
[322183346,1712866255881,-500.0,0.00027671,2]
[322183347,1712866255890,-500.0,0.00027671,2]
[322183348,1712866255899,-500.0,0.00027671,2]
[322183349,1712866255909,-500.0,0.00027671,2]
[322183350,1712866255918,-2009.27,0.00027671,2]
[322183351,1712866255927,-1435.91,0.00027671,2]
[322183352,1712866255937,-743.03,0.00027671,2]
[322183353,1712866255946,-2007.76,0.00027671,2]
[322183354,1712866255955,-500.0,0.00027671,2]
[322183355,1712866255964,-546.44429133,0.00027671,2]
[322183356,1712866255973,-1141.2,0.00027671,2]
[322183357,1712866255982,-500.0,0.00027671,2]
[322183358,1712866255991,-500.0,0.00027671,2]
[322183359,1712866256001,-500.0,0.00027671,2]
[322183360,1712866256011,-981.46,0.00027671,2]
[322183361,1712866256021,-500.0,0.00027671,2]
[322183362,1712866256032,-500.0,0.00027671,2]
[322183363,1712866256040,-500.0,0.00027671,2]
[322183364,1712866256051,-500.0,0.00027671,2]
[322183365,1712866256061,-500.0,0.00027671,2]
[322183366,1712866256071,-500.0,0.00027671,2]
[322183367,1712866256081,-500.0,0.00027671,2]
[322183368,1712866256091,-500.0,0.00027671,2]
[322183369,1712866256101,-1101.81,0.00027671,2]
[322183370,1712866256110,-500.0,0.00027671,2]
[322183371,1712866256119,-500.0,0.00027671,2]
[322183372,1712866256127,-166.59860647,0.00027671,2]
[322183373,1712866256137,-500.0,0.00027671,2]
[322183374,1712866256147,-500.0,0.00027671,2]
[322183375,1712866256156,-500.0,0.00027671,2]
[322183376,1712866256166,-500.0,0.00027671,2]
[322183377,1712866256175,-766.86,0.00027671,2]
[322183378,1712866256185,-500.0,0.00027671,2]
[322183379,1712866256195,-500.0,0.00027671,2]
[322183380,1712866256204,-500.0,0.00027671,2]
[322183381,1712866256213,-1735.26,0.00027671,2]
[322183382,1712866256223,-500.0,0.00027671,2]
[322183383,1712866256232,-500.0,0.00027671,2]
[322183384,1712866256241,-605.77879146,0.00027671,2]
[322183385,1712866256253,-500.0,0.00027671,2]
[322183386,1712866256262,-500.0,0.00027671,2]
[322183387,1712866256272,-500.0,0.00027671,2]
[322183388,1712866256281,-500.0,0.00027671,2]
[322183389,1712866256291,-500.0,0.00027671,2]
[322183390,1712866256301,-853.76,0.00027671,2]
[322183391,1712866256310,-500.0,0.00027671,2]
[322183392,1712866256321,-500.0,0.00027671,2]
[322183393,1712866256330,-500.0,0.00027671,2]
[322183394,1712866256339,-500.0,0.00027671,2]
[322183395,1712866256350,-874.44,0.00027671,2]
[322183396,1712866256360,-500.0,0.00027671,2]
[322183397,1712866256369,-500.0,0.00027671,2]
[322183398,1712866256378,-500.000001,0.00027671,2]
[322183399,1712866256388,-500.0,0.00027671,2]
[322183400,1712866256398,-500.0,0.00027671,2]
[322183401,1712866256407,-500.0,0.00027671,2]
[322183402,1712866256416,-588.16682558,0.00027671,2]
[322183403,1712866256426,-500.0,0.00027671,2]
[322183404,1712866256435,-500.0,0.00027671,2]
[322183405,1712866256444,-500.0,0.00027671,2]
[322183406,1712866256453,-500.0,0.00027671,2]
[322183407,1712866256462,-500.0,0.00027671,2]
[322183408,1712866256471,-500.0,0.00027671,2]
[322183409,1712866256480,-500.0,0.00027671,2]
[322183410,1712866256490,-840.38,0.00027671,2]
[322183411,1712866256499,-1194.17,0.00027671,2]
[322183412,1712866256509,-2890.68,0.00027671,2]
[322183413,1712866256520,-500.0,0.00027671,2]
[322183414,1712866256530,-553.56,0.00027671,2]
[322183415,1712866256541,-500.0,0.00027671,2]
[322183416,1712866256550,-500.0,0.00027671,2]